fUSD/lending_fUSD_20250608
["ID","MTS","AMOUNT","RATE_DAILY","PERIOD"]
[365015158,1749399031608,-300.0,0.00017076,2]
[365015159,1749399031618,-1200.0,0.00017076,2]
[365015160,1749399031627,-23900.0,0.00017077,2]
[365015161,1749399031636,-1000.0,0.00017078,2]
[365015162,1749399031646,-1333.78,0.00017107,2]
[365015163,1749399031656,-532.79,0.00017337,2]
[365015164,1749399031665,-1602.0,0.000177,2]
[365015165,1749399031675,-163.27,0.000177,2]
[365015166,1749399031685,-1200.0,0.000178,6]
[365015167,1749399031695,-612.929,0.00017889,2]
[365015168,1749399031705,-2711.33542446,0.00017889,2]
[365015169,1749399031715,-160.56675033,0.00017889,2]
[365015170,1749399031726,-153.7210781,0.00017889,2]
[365015171,1749399031735,-153.89014296,0.00017889,2]
[365015172,1749399031745,-160.30486295,0.00017889,2]
[365015173,1749399031754,-2515.39015908,0.00017889,2]
[365015174,1749399031764,-1957.856,0.00017894,2]
[365015175,1749399031773,-207.4,0.00017894,2]
[365015176,1749399031782,-177.56319074,0.000179,2]
[365015177,1749399031792,-150.0,0.000179,2]
[365015178,1749399031801,-150.0,0.000179,2]
[365015179,1749399031811,-150.0,0.000179,2]
[365015180,1749399031820,-150.0,0.000179,2]
[365015181,1749399031831,-4585.33563565,0.000179,2]
[365015182,1749399031843,-443.74154585,0.000179,2]
[365015183,1749399031855,-18608.97606497,0.000179,2]
[365015184,1749399031865,-2400.0,0.000179,6]
[365015185,1749399031874,-151.57946382,0.000179,2]
[365015186,1749399031885,-747.24108416,0.00017949,2]
[365015187,1749399031899,-1283.05558784,0.00017949,2]
[365015188,1749399031909,-158.31,0.00017979,2]
[365015189,1749399031918,-151.0,0.00017979,2]
[365015190,1749399031927,-151.0,0.00017979,2]
[365015191,1749399031937,-1000.0,0.00017979,2]
[365015192,1749399031946,-500.0,0.00017979,2]
[365015193,1749399031955,-500.0,0.00017979,2]
[365015194,1749399031964,-151.0,0.00017979,2]
[365015195,1749399031974,-500.0,0.00017979,2]
[365015196,1749399031983,-500.0,0.00017979,2]
[365015197,1749399031993,-151.0,0.00017979,2]
[365015198,1749399032002,-500.0,0.00017979,2]
[365015199,1749399032011,-500.0,0.00017979,2]
[365015200,1749399032020,-151.0,0.00017979,2]
[365015201,1749399032029,-500.0,0.00017979,2]
[365015202,1749399032038,-500.0,0.00017979,2]
[365015203,1749399032047,-151.0,0.00017979,2]
[365015204,1749399032056,-346.09412057,0.00017979,2]
[365015205,1749399032065,-500.0,0.00017979,2]
[365015206,1749399032074,-500.0,0.00017979,2]
[365015207,1749399032083,-500.0,0.00017979,2]
[365015208,1749399032094,-500.0,0.00017979,2]
[365015209,1749399032104,-500.0,0.00017979,2]
[365015210,1749399032113,-500.0,0.00017979,2]
[365015211,1749399032123,-151.0,0.00017979,2]
[365015212,1749399032133,-500.0,0.00017979,2]
[365015213,1749399032142,-500.0,0.00017979,2]
[365015214,1749399032151,-500.0,0.00017979,2]
[365015215,1749399032160,-500.0,0.00017979,2]
[365015216,1749399032169,-500.0,0.00017979,2]
[365015217,1749399032178,-500.0,0.00017979,2]
[365015218,1749399032188,-500.0,0.00017979,2]
[365015219,1749399032197,-500.0,0.00017979,2]
[365015220,1749399032207,-500.0,0.00017979,2]
[365015221,1749399032216,-500.0,0.00017979,2]
[365015222,1749399032225,-500.0,0.00017979,2]
[365015223,1749399032234,-500.0,0.00017979,2]
[365015224,1749399032243,-500.0,0.00017979,2]
[365015225,1749399032253,-500.0,0.00017979,2]
[365015226,1749399032262,-560.31444337,0.00017979,2]
[365015227,1749399032271,-197.76589758,0.0001798,2]
[365015228,1749399032281,-7296.41405772,0.00017988,2]
[365015233,1749399037589,-18467.639319,0.00017988,2]
[365015234,1749399037605,-32500.0,0.00017988,2]
[365015235,1749399037617,-85270.27658949,0.00017988,2]
[365015236,1749399037628,-3627.29809855,0.00017988,2]
[365015439,1749399039791,-356.73918843,0.00017988,2]
[365015441,1749399039803,-459.87518231,0.00017988,2]
[365015579,1749399041334,203.0,0.00016207,2]
[365015991,1749399045535,-610.50921072,0.00017988,2]
[365015993,1749399045547,-2126.244,0.00017988,2]
[365016231,1749399052919,221.49137573,0.00016954,6]
[365016232,1749399191290,200.0,0.00016207,2]
[365016233,1749399218455,-152.43490371,0.00017053,2]
[365016234,1749399221303,206.0,0.00016207,2]
[365016235,1749399282248,4892.25,0.00017031,2]
[365016236,1749399282885,-47.56509629,0.00017053,2]
[365016237,1749399283216,104.43490371,0.00017052,2]
[365016238,1749399283238,45.56509629,0.00017052,2]
[365016239,1749399304794,304.43490371,0.00016153,2]
[365016240,1749399374360,150.0,0.00017032,7]
[365016241,1749399391921,294.59,0.00017025,2]
[365016242,1749399413439,533.49,0.00017025,2]
[365016243,1749399420718,3267.72,0.00017025,2]
[365016245,1749399502736,1778.21,0.00017034,2]
[365016246,1749399627504,250.0,0.00016959,2]
[365016247,1749399655128,564.13,0.00015042,2]
[365016248,1749399717540,155.66,0.0001694,2]
[365016249,1749399731606,203.0,0.00016198,2]
[365016250,1749399800286,192.99,0.00013699,2]
[365016252,1749399896096,500.0,0.00016881,2]
[365016254,1749399998438,519.3,0.00016888,2]
[365016265,1749400187107,150.0,0.00016859,2]
[365016266,1749400205666,1203.16,0.00016867,2]
[365016290,1749400231609,-352.11385569,0.00017063,2]
[365016292,1749400231619,-250.0,0.00017064,2]
[365016294,1749400231628,-1000.0,0.00017077,2]
[365016296,1749400231638,-203.0,0.00017188,2]
[365016298,1749400231647,-564.13,0.00017306,2]
[365016300,1749400231656,-155.301129,0.0001763,2]
[365016302,1749400231666,-151.0,0.00017689,2]
[365016303,1749400231675,-151.0,0.00017689,2]
[365016304,1749400231685,-151.0,0.00017689,2]
[365016305,1749400231694,-151.0,0.00017689,2]
[365016306,1749400231704,-151.0,0.00017689,2]
[365016307,1749400231713,-300.0,0.00017699,2]
[365016308,1749400231722,-1200.0,0.00017699,2]
[365016309,1749400231731,-5220.45501531,0.000177,2]
[365016310,1749400231938,-845.09770921,0.000177,2]
[365016311,1749400231952,-7916.3000535,0.000177,2]
[365016312,1749400231971,-13037.16572048,0.000177,2]
[365016313,1749400231980,-20142.4324367,0.000177,3]
[365016314,1749400231990,-550.0,0.00017722,2]
[365016315,1749400231999,-1000.0,0.00017723,2]
[365016316,1749400232008,-166.02,0.00017734,2]
[365016317,1749400232018,-150.0,0.00017744,2]
[365016318,1749400232029,-151.0,0.00017744,2]
[365016319,1749400232038,-150.0,0.00017765,2]
[365016320,1749400232047,-500.0,0.0001777,2]
[365016321,1749400232056,-208.4396315,0.0001777,2]
[365016322,1749400232065,-427.26302833,0.0001777,2]
[365016323,1749400232074,-13509.5,0.00017771,2]
[365016324,1749400232084,-23658.0,0.000178,2]
[365016325,1749400232094,-300.0,0.000178,2]
[365016326,1749400232103,-150.0,0.000178,2]
[365016327,1749400232113,-150.0,0.000178,2]
[365016328,1749400232124,-163.25,0.000178,2]
[365016329,1749400232133,-1000.0,0.000178,6]
[365016330,1749400232143,-150.0,0.0001783,2]
[365016331,1749400232153,-150.0,0.0001785,2]
[365016332,1749400232163,-150.0,0.00017864,2]
[365016333,1749400232172,-1000.0,0.00017881,2]
[365016334,1749400232181,-1000.0,0.00017884,2]
[365016335,1749400232191,-5452.91036058,0.00017889,2]
[365016336,1749400232200,-160.56675034,0.0001789,2]
[365016337,1749400232210,-172.58921052,0.0001789,2]
[365016338,1749400232220,-161.37499623,0.0001789,2]
[365016339,1749400232230,-500.0,0.0001789,2]
[365016340,1749400232239,-1000.0,0.00017894,2]
[365016341,1749400232250,-207.4,0.00017894,2]
[365016342,1749400232260,-1957.856,0.00017894,2]
[365016343,1749400232269,-151.0,0.00017894,2]
[365016344,1749400232279,-500.0,0.00017894,2]
[365016345,1749400232288,-500.0,0.00017894,2]
[365016346,1749400232298,-500.0,0.00017894,2]
[365016347,1749400232308,-500.0,0.00017894,2]
[365016348,1749400232318,-500.0,0.00017894,2]
[365016349,1749400232327,-300.0,0.00017894,2]
[365016350,1749400232335,-500.0,0.00017894,2]
[365016351,1749400232346,-516.44800324,0.00017894,2]
[365016352,1749400232356,-151.52017565,0.00017894,2]
[365016353,1749400232365,-151.0,0.00017894,2]
[365016354,1749400232374,-175.60135328,0.000179,2]
[365016355,1749400232383,-708.68,0.000179,2]
[365016356,1749400232392,-2100.0,0.000179,6]
[365016357,1749400232401,-152.85423764,0.000179,2]
[365016358,1749400232411,-150.0,0.00017905,2]
[365016359,1749400232420,-150.0,0.00017928,2]
[365016360,1749400232430,-150.0,0.00017941,2]
[365016361,1749400232440,-150.0,0.00017946,2]
[365016362,1749400232450,-2030.296672,0.00017949,2]
[365016363,1749400232460,-150.0,0.00017949,2]
[365016364,1749400232469,-150.0,0.00017971,2]
[365016365,1749400232478,-287.00733248,0.00017973,2]
[365016366,1749400232488,-156.63,0.0001798,2]
[365016367,1749400232499,-199.9664264,0.00017988,2]
[365016368,1749400232510,-312.07601199,0.00017988,2]
[365016369,1749400232520,-385.79667038,0.00017988,2]
[365016370,1749400232529,-214.54575551,0.00017988,2]
[365016371,1749400232537,-232.2268991,0.00017988,2]
[365016372,1749400232547,-477.58561498,0.00017988,2]
[365016373,1749400232556,-162.55882937,0.00017988,2]
[365016374,1749400232566,-666.0,0.00017989,2]
[365016375,1749400232576,-310.89657175,0.00017989,2]
[365016376,1749400232587,-300.0,0.00017989,2]
[365016377,1749400232597,-151.0,0.00017989,2]
[365016378,1749400232606,-500.0,0.00017989,2]
[365016379,1749400232616,-480.0,0.00017989,2]
[365016380,1749400232627,-150.0,0.00017989,2]
[365016381,1749400232636,-306.26,0.00017989,2]
[365016382,1749400232646,-490.343,0.00017989,2]
[365016383,1749400232654,-473.75,0.00017989,2]
[365016384,1749400232663,-480.0,0.00017989,2]
[365016385,1749400232673,-383.16,0.00017989,2]
[365016386,1749400232682,-480.0,0.00017989,2]
[365016387,1749400232691,-480.0,0.00017989,2]
[365016388,1749400232700,-480.0,0.00017989,2]
[365016389,1749400232709,-480.0,0.00017989,2]
[365016390,1749400232719,-150.0,0.00017989,2]
[365016391,1749400232728,-480.0,0.00017989,2]
[365016392,1749400232740,-480.0,0.00017989,2]
[365016393,1749400232749,-365.5181928,0.00017989,2]
[365016394,1749400232760,-480.0,0.00017989,2]
[365016395,1749400232769,-480.0,0.00017989,2]
[365016396,1749400232780,-480.0,0.00017989,2]
[365016397,1749400232788,-480.0,0.00017989,2]
[365016398,1749400232799,-519.82386206,0.00017989,2]
[365016399,1749400232808,-480.0,0.00017989,2]
[365016400,1749400232817,-500.0,0.00017989,2]
[365016401,1749400232827,-200.0,0.00017989,2]
[365016402,1749400232836,-500.0,0.00017989,2]
[365016403,1749400232846,-480.0,0.00017989,2]
[365016404,1749400232855,-480.0,0.00017989,2]
[365016405,1749400232864,-150.0,0.00017989,2]
[365016406,1749400232874,-480.0,0.00017989,2]
[365016407,1749400232883,-500.0,0.00017989,2]
[365016408,1749400232892,-500.0,0.00017989,2]
[365016409,1749400232901,-480.0,0.00017989,2]
[365016410,1749400232910,-480.0,0.00017989,2]
[365016411,1749400232920,-480.0,0.00017989,2]
[365016412,1749400232929,-603.66,0.00017989,2]
[365016413,1749400232940,-280.00549623,0.00017989,2]
[365016414,1749400236754,-544.41450377,0.00017989,2]
[365016415,1749400236764,-394.68,0.00017989,2]
[365016416,1749400236775,-155.19771798,0.00017989,2]
[365016432,1749400237509,-290.98456614,0.00017989,2]
[365016433,1749400237521,-1088.99771588,0.00017989,2]
[365016434,1749400237532,-1070.84,0.00017989,2]
[365016435,1749400237541,-480.0,0.00017989,2]
[365016436,1749400237550,-480.0,0.00017989,2]
[365016437,1749400237559,-500.0,0.00017989,2]
[365016438,1749400237569,-500.0,0.00017989,2]
[365016439,1749400237578,-280.06445546,0.00017989,2]
[365016440,1749400237587,-500.0,0.00017989,2]
[365016441,1749400237596,-150.0,0.00017989,2]
[365016442,1749400237606,-728.0,0.00017989,2]
[365016443,1749400237615,-480.0,0.00017989,2]
[365016444,1749400237624,-480.0,0.00017989,2]
[365016445,1749400237635,-4277.5,0.00017989,2]
[365016446,1749400237644,-480.0,0.00017989,2]
[365016447,1749400237653,-1361.85,0.00017989,2]
[365016448,1749400237663,-480.0,0.00017989,2]
[365016449,1749400237672,-480.0,0.00017989,2]
[365016450,1749400237681,-480.0,0.00017989,2]
[365016451,1749400237691,-480.0,0.00017989,2]
[365016452,1749400237700,-244.0,0.00017989,2]
[365016453,1749400237709,-480.0,0.00017989,2]
[365016454,1749400237719,-480.0,0.00017989,2]
[365016457,1749400237901,-150.0,0.00017989,2]
[365016460,1749400237919,-480.0,0.00017989,2]
[365016462,1749400237929,-24192.59,0.00017989,2]
[365016464,1749400237942,-480.0,0.00017989,2]
[365016466,1749400237951,-480.0,0.00017989,2]
[365016468,1749400237961,-1460.9,0.00017989,2]
[365016470,1749400237970,-460.0,0.00017989,2]
[365016471,1749400237980,-595.37,0.00017989,2]
[365016473,1749400237991,-480.0,0.00017989,2]
[365016476,1749400238000,-1561.85,0.00017989,2]
[365016479,1749400238010,-2041.57,0.00017989,2]
[365016481,1749400238021,-480.0,0.00017989,2]
[365016483,1749400238033,-480.0,0.00017989,2]
[365016485,1749400238042,-480.0,0.00017989,2]
[365016487,1749400238052,-480.0,0.00017989,2]
[365016489,1749400238062,-480.0,0.00017989,2]
[365016491,1749400238071,-594.26955833,0.00017989,2]
[365016493,1749400238081,-480.0,0.00017989,2]
[365016495,1749400238091,-480.0,0.00017989,2]
[365016497,1749400238101,-480.0,0.00017989,2]
[365016499,1749400238110,-480.0,0.00017989,2]
[365016501,1749400238119,-480.0,0.00017989,2]
[365016503,1749400238128,-480.0,0.00017989,2]
[365016505,1749400238138,-1114.5,0.00017989,2]
[365016507,1749400238147,-508.10201183,0.00017989,2]
[365016509,1749400238157,-628.38,0.00017989,2]
[365016511,1749400238166,-324.40168323,0.00017989,2]
[365016513,1749400238175,-860.02,0.00017989,2]
[365016515,1749400238185,-755.23,0.00017989,2]
[365016517,1749400238194,-480.0,0.00017989,2]
[365016519,1749400238203,-480.0,0.00017989,2]
[365016521,1749400238212,-480.0,0.00017989,2]
[365016523,1749400238221,-480.0,0.00017989,2]
[365016525,1749400238230,-2221.45,0.00017989,2]
[365016527,1749400238240,-480.0,0.00017989,2]
[365016529,1749400238250,-152.37372033,0.00017989,2]
[365016531,1749400238259,-14202.99882083,0.0001799,2]
[365016533,1749400238276,-88935.0,0.0001799,2]
[365016535,1749400238287,-42995.74306107,0.0001799,2]
[365016687,1749400239806,-6037.82391373,0.0001799,2]
[365016699,1749400239912,-53659.15699475,0.0001799,2]
[365016701,1749400239923,-1381.25,0.0001799,2]
[365016703,1749400239934,-2294.53093401,0.0001799,2]
[365016713,1749400240028,-16040.1537486,0.0001799,2]
[365016828,1749400242679,-204.0,0.00017188,2]
[365016829,1749400242690,-266.0356,0.00017954,2]
[365016830,1749400242702,-3510.65769961,0.0001799,2]
[365016831,1749400242732,-10646.25000001,0.0001799,2]
[365016878,1749400245657,-1064.4246,0.00017989,2]
[365016879,1749400245977,-406.7954,0.00017989,2]
[365016880,1749400245990,-480.0,0.00017989,2]
[365016881,1749400246000,-551.55257702,0.0001799,2]
[365016882,1749400246012,-25278.15585277,0.0001799,2]
[365016992,1749400381203,-225.97007529,0.00017052,2]
[365016993,1749400387469,150.0,0.00017039,7]
[365016994,1749400390045,-207.00000599,0.00017052,2]
[365016995,1749400393666,-85.11991872,0.00017052,2]
[365016996,1749400453926,240.86,0.00017033,2]
[365016997,1749400455229,225.97007529,0.00016153,2]
[365016998,1749400481922,200.0,0.00017033,2]
[365017001,1749400617667,250.0,0.00017008,2]
[365017007,1749400816935,6007.54635654,0.00017,2]
[365017008,1749400868866,507.71,0.00015015,2]
[365017009,1749400872596,169.1,0.00016926,2]
[365017010,1749401000719,4005.41,0.00016927,2]
[365017011,1749401068458,259.65,0.0001692,2]
[365017012,1749401096206,183.34,0.00013699,2]
[365017014,1749401141562,205.4,0.00016931,2]
[365017015,1749401171865,201.0,0.00016227,2]
[365017016,1749401290110,1000.0,0.00016914,2]
[365017017,1749401290408,2300.0,0.00017,2]
[365017018,1749401327294,4039.5,0.00016922,2]
[365017019,1749401339238,-166.36457996,0.00017097,2]
[365017020,1749401339261,-250.0,0.00017173,2]
[365017021,1749401339281,-250.0,0.00017197,2]
[365017022,1749401339302,-507.71,0.00017279,2]
[365017023,1749401339323,-166.36457996,0.00017485,2]
[365017024,1749401339344,-155.301129,0.0001763,2]
[365017025,1749401339364,-500.0,0.00017699,2]
[365017026,1749401339384,-233.47180927,0.00017768,2]
[365017027,1749401339406,-900.0,0.000178,6]
[365017028,1749401339428,-150.0,0.00017833,2]
[365017029,1749401339448,-166.36457996,0.00017873,2]
[365017030,1749401339472,-1200.0,0.00017884,2]
[365017031,1749401339494,-250.49704198,0.00017885,2]
[365017032,1749401339517,-300.0,0.00017888,2]
[365017033,1749401339538,-300.0,0.00017889,2]
[365017034,1749401339558,-175.60135328,0.0001789,2]
[365017035,1749401339579,-978.32492659,0.0001789,2]
[365017037,1749401408547,150.0,0.00016978,7]
[365017040,1749401431739,-1200.0,0.00017699,2]
[365017041,1749401431749,-300.0,0.00017699,2]
[365017042,1749401431759,-243.28461,0.000177,4]
[365017043,1749401431770,-356.71539,0.000177,4]
[365017044,1749401431780,-1665.80464033,0.000177,2]
[365017045,1749401431793,-3765.66929383,0.000177,2]
[365017046,1749401431804,-1042.31877614,0.000177,2]
[365017047,1749401431815,-7169.9085657,0.000177,2]
[365017048,1749401431900,-1795.748724,0.000177,2]
[365017049,1749401431910,-250.0,0.00017741,2]
[365017050,1749401431919,-600.0,0.00017749,4]
[365017051,1749401431928,-1000.0,0.00017781,2]
[365017052,1749401431938,-155.301129,0.00017781,2]
[365017053,1749401431947,-250.0,0.00017823,2]
[365017054,1749401431956,-6463.32579321,0.00017854,2]
[365017055,1749401431967,-1256.38420679,0.00017854,2]
[365017056,1749401431976,-1812.41665231,0.0001789,2]
[365017057,1749401431995,-1682.33057766,0.0001789,2]
[365017058,1749401432007,-567.60203135,0.0001789,2]
[365017060,1749401432018,-845.27006322,0.0001789,2]
[365017062,1749401432027,-161.31087881,0.0001789,2]
[365017064,1749401432037,-500.0,0.0001789,2]
[365017066,1749401432046,-12703.0064,0.0001789,2]
[365017068,1749401432055,-169.5121,0.0001789,2]
[365017070,1749401432064,-473.06,0.00017893,2]
[365017071,1749401432073,-505.0,0.00017893,2]
[365017073,1749401432082,-1000.0,0.00017894,2]
[365017075,1749401432091,-1957.856,0.00017894,2]
[365017077,1749401432100,-207.4,0.00017894,2]
[365017079,1749401432109,-500.0,0.00017894,2]
[365017081,1749401432119,-573.2153976,0.00017894,2]
[365017083,1749401432128,-151.0,0.00017894,2]
[365017084,1749401432137,-11492.12752341,0.00017894,2]
[365017086,1749401432146,-17464.68286168,0.000179,5]
[365017088,1749401432156,-300.0,0.000179,2]
[365017090,1749401432165,-708.68,0.000179,2]
[365017092,1749401432174,-163.22,0.000179,2]
[365017094,1749401432183,-1800.0,0.000179,6]
[365017096,1749401432193,-276.88206124,0.000179,2]
[365017122,1749401432397,-452.28896864,0.0001791,2]
[365017124,1749401432407,-392.275,0.0001791,2]
[365017126,1749401432416,-150.0,0.00017941,2]
[365017128,1749401432426,-2030.296672,0.00017949,2]
[365017130,1749401432435,-500.0,0.00017973,2]
[365017132,1749401432445,-500.0,0.00017973,2]
[365017134,1749401432454,-500.0,0.00017973,2]
[365017136,1749401432464,-500.0,0.00017973,2]
[365017137,1749401432473,-500.0,0.00017973,2]
[365017139,1749401432482,-500.0,0.00017973,2]
[365017140,1749401432491,-500.0,0.00017973,2]
[365017141,1749401432500,-500.0,0.00017987,2]
[365017142,1749401432509,-500.0,0.00017987,2]
[365017143,1749401432518,-503.11151744,0.00017987,2]
[365017144,1749401432526,-500.0,0.00017987,2]
[365017145,1749401432536,-500.0,0.00017987,2]
[365017146,1749401432545,-257.59815901,0.00017987,2]
[365017147,1749401432554,-500.0,0.00017987,2]
[365017148,1749401432563,-500.0,0.00017987,2]
[365017149,1749401432572,-500.0,0.00017987,2]
[365017150,1749401432581,-500.0,0.00017987,2]
[365017151,1749401432590,-474.8864926,0.00017987,2]
[365017152,1749401432600,-274.15938302,0.00017987,2]
[365017153,1749401432609,-420.12562415,0.00017987,2]
[365017154,1749401432618,-480.0,0.00017988,2]
[365017155,1749401432627,-480.0,0.00017988,2]
[365017156,1749401432637,-504.94,0.00017988,2]
[365017157,1749401432646,-480.0,0.00017988,2]
[365017158,1749401432655,-480.0,0.00017988,2]
[365017159,1749401432664,-480.0,0.00017988,2]
[365017160,1749401432674,-363.24,0.00017988,2]
[365017161,1749401432683,-496.84,0.00017988,2]
[365017162,1749401432692,-480.0,0.00017988,2]
[365017163,1749401432702,-578.51,0.00017988,2]
[365017164,1749401432711,-393.77,0.00017988,2]
[365017165,1749401432721,-790.06,0.00017988,2]
[365017166,1749401432731,-1409.92,0.00017988,2]
[365017167,1749401432740,-1026.22,0.00017988,2]
[365017168,1749401432749,-480.0,0.00017988,2]
[365017169,1749401432759,-480.0,0.00017988,2]
[365017170,1749401432768,-1305.1,0.00017988,2]
[365017171,1749401432778,-480.0,0.00017988,2]
[365017172,1749401432788,-480.0,0.00017988,2]
[365017173,1749401432797,-480.0,0.00017988,2]
[365017174,1749401432807,-1400.03,0.00017988,2]
[365017175,1749401432816,-480.0,0.00017988,2]
[365017176,1749401432825,-480.0,0.00017989,2]
[365017177,1749401432835,-311.91,0.00017989,2]
[365017178,1749401432844,-480.0,0.00017989,2]
[365017179,1749401432854,-480.0,0.00017989,2]
[365017180,1749401432863,-480.0,0.00017989,2]
[365017181,1749401432872,-159.59860738,0.00017989,2]
[365017182,1749401432881,-480.0,0.00017989,2]
[365017183,1749401432890,-480.0,0.00017989,2]
[365017184,1749401432899,-488.81588506,0.00017989,2]
[365017185,1749401432908,-300.0,0.00017989,2]
[365017186,1749401432918,-480.0,0.00017989,2]
[365017187,1749401432927,-408.18823989,0.00017989,2]
[365017395,1749401440213,-163.87627696,0.00017899,2]
[365017397,1749401440223,-157.79173602,0.00017899,2]
[365017399,1749401440232,-85.59753743,0.00017988,2]
[365017401,1749401440244,-290.42478653,0.00017988,2]
[365017403,1749401440253,-207.9654659,0.00017988,2]
[365017405,1749401440263,-334.30993048,0.00017988,2]
[365017407,1749401440272,-504.00146516,0.00017988,2]
[365017409,1749401440281,-219.31409615,0.00017988,2]
[365017410,1749401440290,-209.59626585,0.00017988,2]
[365017412,1749401440300,-91.81176011,0.00017989,2]
[365017415,1749401440311,-500.0,0.00017989,2]
[365017416,1749401440320,-150.0,0.00017989,2]
[365017418,1749401440330,-500.0,0.00017989,2]
[365017420,1749401440339,-500.0,0.00017989,2]
[365017422,1749401440348,-500.0,0.00017989,2]
[365017424,1749401440358,-291.8858329,0.00017989,2]
[365017702,1749401443193,-61.91393938,0.00017989,2]
[365017704,1749401443202,-500.0,0.00017989,2]
[365017706,1749401443212,-697.0,0.00017989,2]
[365017708,1749401443221,-480.0,0.00017989,2]
[365017710,1749401443230,-4099.27,0.00017989,2]
[365017712,1749401443239,-480.0,0.00017989,2]
[365017714,1749401443249,-150.0,0.00017989,2]
[365017716,1749401443258,-480.0,0.00017989,2]
[365017718,1749401443267,-480.0,0.00017989,2]
[365017720,1749401443276,-480.0,0.00017989,2]
[365017722,1749401443286,-1496.77,0.00017989,2]
[365017724,1749401443295,-633.32648886,0.00017989,2]
[365017978,1749401446069,-760.69999997,0.00017989,2]
[365017979,1749401446080,-3328.9035706,0.00017989,2]
[365017988,1749401471232,205.0,0.00016227,2]
[365017990,1749401512345,-157.91991573,0.00017055,2]
[365017991,1749401515972,-173.86162008,0.00017055,2]
[365017992,1749401519076,-301.47368583,0.00017055,2]
[365017993,1749401521762,-179.67477836,0.00017055,2]
[365017994,1749401675517,250.0,0.00016925,2]
[365017995,1749401892063,201.0,0.00016217,2]
[365017996,1749402054168,456.93,0.00015005,2]
[365017998,1749402079058,174.17,0.00013699,2]
[365017999,1749402200195,1078.0,0.00016,2]
[365018000,1749402274457,1000.0,0.000169,2]
[365018001,1749402293434,259.65,0.00016874,2]
[365018002,1749402362077,150.0,0.0001687,7]
[365018003,1749402387200,3783.08,0.00016872,2]
[365018007,1749402611684,201.0,0.00016207,2]
[365018012,1749402632099,-153.684223,0.00017105,2]
[365018013,1749402632108,-195.47414302,0.00017191,2]
[365018014,1749402632120,-54.52585698,0.00017191,2]
[365018015,1749402632129,-456.93,0.00017269,2]
[365018016,1749402632138,-250.0,0.00017332,2]
[365018017,1749402632147,-600.0,0.00017377,4]
[365018018,1749402632156,-155.301129,0.0001763,2]
[365018019,1749402632165,-600.0,0.00017687,4]
[365018020,1749402632176,-1200.0,0.00017688,2]
[365018021,1749402632186,-1957.856,0.00017689,2]
[365018022,1749402632195,-207.4,0.00017689,2]
[365018023,1749402632204,-1037.0,0.00017689,2]
[365018024,1749402632213,-151.0,0.00017689,2]
[365018025,1749402632222,-454.66696136,0.00017696,2]
[365018026,1749402632231,-300.0,0.00017698,2]
[365018027,1749402632241,-1163.18,0.000177,2]
[365018028,1749402632252,-163.15,0.000177,2]
[365018029,1749402632263,-1163.18,0.000177,2]
[365018030,1749402632273,-8822.54,0.000177,2]
[365018031,1749402632285,-150.0,0.00017724,2]
[365018032,1749402632296,-150.0,0.00017734,2]